fUST/lending_fUST_20240424
["ID","MTS","AMOUNT","RATE_DAILY","PERIOD"]
[323367274,1713933047956,-500.0,0.00016438,2]
[323367275,1713933047965,-500.0,0.00016438,2]
[323367276,1713933047974,-500.0,0.00016438,2]
[323367277,1713933047984,-500.0,0.00016438,2]
[323367278,1713933047993,-500.0,0.00016438,2]
[323367279,1713933048002,-500.0,0.00016438,2]
[323367280,1713933048012,-500.0,0.00016438,2]
[323367281,1713933048021,-500.0,0.00016438,2]
[323367282,1713933048030,-151.0,0.00016438,2]
[323367283,1713933048039,-1559.11,0.00016438,2]
[323367284,1713933048048,-500.0,0.00016438,2]
[323367285,1713933048057,-523.34398137,0.00016438,2]
[323367286,1713933048066,-500.0,0.00016438,2]
[323367287,1713933048075,-500.0,0.00016438,2]
[323367288,1713933048085,-500.0,0.00016438,2]
[323367289,1713933048093,-500.81962345,0.00016438,2]
[323367290,1713933048102,-500.0,0.00016438,2]
[323367291,1713933048112,-736.97,0.00016438,2]
[323367292,1713933048121,-500.0,0.00016438,2]
[323367293,1713933048132,-500.0,0.00016438,2]
[323367294,1713933048142,-1765.25,0.00016438,2]
[323367295,1713933048151,-500.0,0.00016438,2]
[323367296,1713933048160,-500.0,0.00016438,2]
[323367297,1713933048169,-560.69,0.00016438,2]
[323367298,1713933048179,-500.0,0.00016438,2]
[323367299,1713933048188,-500.0,0.00016438,2]
[323367300,1713933048196,-509.76595594,0.00016438,2]
[323367301,1713933048205,-370.19826264,0.00016438,2]
[323367302,1713933048214,-500.97540546,0.00016438,2]
[323367303,1713933048223,-500.0,0.00016438,2]
[323367304,1713933048233,-500.0,0.00016438,2]
[323367305,1713933048242,-500.0,0.00016438,2]
[323367306,1713933048251,-251.71232668,0.00016438,2]
[323367307,1713933048261,-500.0,0.00016438,2]
[323367308,1713933048271,-459.68986311,0.00016438,2]
[323367309,1713933048280,-218.71900684,0.00016438,2]
[323367310,1713933048289,-500.0,0.00016438,2]
[323367311,1713933048299,-500.0,0.00016438,2]
[323367312,1713933048308,-500.0,0.00016438,2]
[323367313,1713933048317,-500.0,0.00016438,2]
[323367314,1713933048326,-610.25493,0.00016438,2]
[323367315,1713933048335,-500.0,0.00016438,2]
[323367316,1713933048344,-500.0,0.00016438,2]
[323367317,1713933048353,-610.25493,0.00016438,2]
[323367318,1713933048362,-500.2960417,0.00016438,2]
[323367319,1713933048371,-500.0,0.00016438,2]
[323367320,1713933048382,-500.0,0.00016438,2]
[323367321,1713933048390,-500.0,0.00016438,2]
[323367322,1713933048399,-500.0,0.00016438,2]
[323367323,1713933048408,-500.0,0.00016438,2]
[323367324,1713933048420,-501.33198144,0.00016438,2]
[323367325,1713933048429,-500.0,0.00016438,2]
[323367326,1713933048438,-500.0,0.00016438,2]
[323367327,1713933048447,-500.0,0.00016438,2]
[323367328,1713933048457,-500.0,0.00016438,2]
[323367329,1713933048467,-939.13,0.00016438,2]
[323367330,1713933048476,-500.0,0.00016438,2]
[323367331,1713933048485,-500.0,0.00016438,2]
[323367332,1713933048496,-500.0,0.00016438,2]
[323367333,1713933048505,-625.01099146,0.00016438,2]
[323367334,1713933048515,-500.0,0.00016438,2]
[323367335,1713933048525,-500.0,0.00016438,2]
[323367336,1713933048535,-500.0,0.00016438,2]
[323367337,1713933048545,-960.66,0.00016438,2]
[323367338,1713933048556,-500.0,0.00016438,2]
[323367339,1713933048566,-500.0,0.00016438,2]
[323367340,1713933048575,-720.32,0.00016438,2]
[323367341,1713933048585,-823.94,0.00016438,2]
[323367342,1713933048594,-500.0,0.00016438,2]
[323367343,1713933048604,-189.68644388,0.00016438,2]
[323367344,1713933048613,-462.03863437,0.00016438,2]
[323367345,1713933048621,-151.0,0.00016438,2]
[323367346,1713933048633,-151.0,0.00016438,2]
[323367347,1713933048643,-785.05,0.00016438,2]
[323367348,1713933048653,-500.0,0.00016438,2]
[323367349,1713933048663,-500.0,0.00016438,2]
[323367350,1713933048673,-500.65852107,0.00016438,2]
[323367351,1713933048682,-500.0,0.00016438,2]
[323367352,1713933048692,-2441.51,0.00016438,2]
[323367353,1713933048701,-539.656321,0.00016438,2]
[323367354,1713933048710,-500.0,0.00016438,2]
[323367355,1713933048720,-539.656321,0.00016438,2]
[323367356,1713933048729,-500.0,0.00016438,2]
[323367357,1713933048739,-151.0,0.00016438,2]
[323367358,1713933048748,-500.0,0.00016438,2]
[323367359,1713933048758,-151.0,0.00016438,2]
[323367360,1713933048767,-500.0,0.00016438,2]
[323367361,1713933048776,-321.62052719,0.00016438,2]
[323367362,1713933048786,-500.0,0.00016438,2]
[323367363,1713933048796,-151.0,0.00016438,2]
[323367364,1713933048805,-500.0,0.00016438,2]
[323367365,1713933048814,-151.0,0.00016438,2]
[323367366,1713933048824,-196.20790371,0.00016438,2]
[323367367,1713933048833,-500.0,0.00016438,2]
[323367368,1713933048843,-500.0,0.00016438,2]
[323367369,1713933048852,-500.0,0.00016438,2]
[323367370,1713933048861,-500.0,0.00016438,2]
[323367371,1713933048871,-922.96,0.00016438,2]
[323367372,1713933048882,-1805.34,0.00016438,2]
[323367373,1713933048891,-1838.4,0.00016438,2]
[323367374,1713933048900,-151.0,0.00016438,2]
[323367375,1713933048910,-151.0,0.00016438,2]
[323367376,1713933048919,-1533.27,0.00016438,2]
[323367377,1713933048928,-500.0,0.00016438,2]
[323367378,1713933048938,-515.55054703,0.00016438,2]
[323367379,1713933048947,-500.0,0.00016438,2]
[323367380,1713933048956,-151.0,0.00016438,2]
[323367381,1713933048966,-500.0,0.00016438,2]
[323367382,1713933048975,-500.27642023,0.00016438,2]
[323367383,1713933048984,-151.0,0.00016438,2]
[323367384,1713933048993,-566.08,0.00016438,2]
[323367385,1713933049002,-500.0,0.00016438,2]
[323367386,1713933049012,-500.0,0.00016438,2]
[323367387,1713933049021,-151.0,0.00016438,2]
[323367388,1713933049030,-246.950196,0.00016438,2]
[323367389,1713933049039,-618.67,0.00016438,2]
[323367390,1713933049047,-500.0,0.00016438,2]
[323367391,1713933049057,-152.957468,0.00016438,2]
[323367392,1713933049066,-1674.53,0.00016438,2]
[323367393,1713933049075,-612.32,0.00016438,2]
[323367394,1713933049084,-7938.47,0.00016438,2]
[323367395,1713933049093,-151.0,0.00016438,2]
[323367396,1713933049102,-151.0,0.00016438,2]
[323367397,1713933049112,-500.0,0.00016438,2]
[323367398,1713933049121,-554.35,0.00016438,2]
[323367399,1713933049131,-500.0,0.00016438,2]
[323367400,1713933049140,-589.5,0.00016438,2]
[323367401,1713933049150,-1691.83,0.00016438,2]
[323367402,1713933049159,-500.0,0.00016438,2]
[323367403,1713933049169,-234.27910642,0.00016438,2]
[323367404,1713933049178,-500.0,0.00016438,2]
[323367405,1713933049187,-500.42111728,0.00016438,2]
[323367406,1713933049196,-1246.46,0.00016438,2]
[323367407,1713933049205,-500.0,0.00016438,2]
[323367408,1713933049215,-500.0,0.00016438,2]
[323367409,1713933049224,-1125.2,0.00016438,2]
[323367410,1713933049233,-10162.71,0.00016438,2]
[323367411,1713933049243,-500.0,0.00016438,2]
[323367412,1713933049252,-500.0,0.00016438,2]
[323367413,1713933049262,-500.6174494,0.00016438,2]
[323367414,1713933049271,-500.0,0.00016438,2]
[323367415,1713933049280,-500.0,0.00016438,2]
[323367416,1713933049289,-1171.91,0.00016438,2]
[323367417,1713933049300,-500.0,0.00016438,2]
[323367418,1713933049309,-605.34,0.00016438,2]
[323367419,1713933049318,-7868.58,0.00016438,2]
[323367420,1713933049327,-500.0,0.00016438,2]
[323367421,1713933049336,-500.0,0.00016438,2]
[323367422,1713933049345,-1271.57,0.00016438,2]
[323367423,1713933049355,-791.48,0.00016438,2]
[323367424,1713933049364,-608.39,0.00016438,2]
[323367425,1713933049373,-500.0,0.00016438,2]
[323367426,1713933049384,-500.0,0.00016438,2]
[323367427,1713933049393,-500.0,0.00016438,2]
[323367428,1713933049402,-160.38725861,0.00016438,2]
[323367429,1713933049412,-500.0,0.00016438,2]
[323367430,1713933049423,-500.0,0.00016438,2]
[323367431,1713933049432,-500.0,0.00016438,2]
[323367432,1713933049441,-500.0,0.00016438,2]
[323367433,1713933049450,-500.0,0.00016438,2]
[323367434,1713933049461,-7622.46,0.00016438,2]
[323367435,1713933049470,-1040.52,0.00016438,2]
[323367436,1713933049479,-2034.6,0.00016438,2]
[323367437,1713933049489,-500.0,0.00016438,2]
[323367438,1713933049498,-3950.25,0.00016438,2]
[323367439,1713933049508,-1378.95,0.00016438,2]
[323367440,1713933049517,-500.0,0.00016438,2]
[323367441,1713933049527,-229.70110682,0.00016438,2]
[323367442,1713933049536,-500.0,0.00016438,2]
[323367443,1713933049545,-1118.92,0.00016438,2]
[323367444,1713933049554,-7184.14,0.00016438,2]
[323367445,1713933049564,-151.0,0.00016438,2]
[323367446,1713933049573,-151.0,0.00016438,2]
[323367447,1713933049583,-500.0,0.00016438,2]
[323367448,1713933049592,-512.73744312,0.00016438,2]
[323367449,1713933049601,-7085.577816,0.00016438,2]
[323367450,1713933049610,-7085.577816,0.00016438,2]
[323367451,1713933049619,-503.41735333,0.00016438,2]
[323367452,1713933049631,-1563.71,0.00016438,2]
[323367453,1713933049640,-500.3072592,0.00016438,2]
[323367454,1713933049649,-5368.36,0.00016438,2]
[323367455,1713933049658,-500.0,0.00016438,2]
[323367456,1713933049667,-500.0,0.00016438,2]
[323367457,1713933049676,-7085.577816,0.00016438,2]
[323367458,1713933049685,-7085.577816,0.00016438,2]
[323367459,1713933049695,-502.28764587,0.00016438,2]
[323367460,1713933049704,-500.0,0.00016438,2]
[323367461,1713933049713,-1345.6,0.00016438,2]
[323367462,1713933049723,-500.0,0.00016438,2]
[323367463,1713933049733,-501.42733279,0.00016438,2]
[323367464,1713933049742,-500.0,0.00016438,2]
[323367465,1713933049751,-151.0,0.00016438,2]
[323367466,1713933049762,-151.0,0.00016438,2]
[323367467,1713933049772,-500.0,0.00016438,2]
[323367468,1713933049781,-647.1,0.00016438,2]
[323367469,1713933049791,-508.58757332,0.00016438,2]
[323367470,1713933049801,-500.0,0.00016438,2]
[323367471,1713933049811,-500.77343479,0.00016438,2]
[323367472,1713933049820,-500.0,0.00016438,2]
[323367473,1713933049829,-355.3244265,0.00016438,2]
[323367474,1713933049839,-500.0,0.00016438,2]
[323367475,1713933049848,-500.0,0.00016438,2]
[323367476,1713933049857,-500.0,0.00016438,2]
[323367477,1713933049867,-288.37275252,0.00016438,2]
[323367478,1713933049878,-500.0,0.00016438,2]
[323367479,1713933049888,-716.64,0.00016438,2]
[323367480,1713933049897,-1476.02,0.00016438,2]
[323367481,1713933049906,-500.0,0.00016438,2]
[323367482,1713933049915,-951.1,0.00016438,2]
[323367483,1713933049925,-500.0,0.00016438,2]
[323367484,1713933049935,-501.79988969,0.00016438,2]
[323367485,1713933049945,-1015.38,0.00016438,2]
[323367486,1713933049954,-500.0,0.00016438,2]
[323367487,1713933049964,-957.38,0.00016438,2]
[323367488,1713933049973,-502.00927418,0.00016438,2]
[323367489,1713933049982,-500.0,0.00016438,2]
[323367490,1713933049991,-500.0,0.00016438,2]
[323367491,1713933050001,-500.0,0.00016438,2]
[323367492,1713933050010,-2497.95,0.00016438,2]
[323367493,1713933050020,-740.291031,0.00016438,2]
[323367494,1713933050029,-740.291031,0.00016438,2]
[323367495,1713933050038,-500.0,0.00016438,2]
[323367496,1713933050049,-783.03,0.00016438,2]
[323367497,1713933050059,-2577.73,0.00016438,2]
[323367498,1713933050070,-500.0,0.00016438,2]
[323367499,1713933050080,-740.291031,0.00016438,2]
[323367500,1713933050089,-740.291031,0.00016438,2]
[323367501,1713933050099,-553.34970399,0.00016438,2]
[323367502,1713933050109,-500.21318804,0.00016438,2]
[323367503,1713933050119,-500.0,0.00016438,2]
[323367504,1713933050128,-500.0,0.00016438,2]
[323367505,1713933050139,-500.0,0.00016438,2]
[323367506,1713933050149,-500.0,0.00016438,2]
[323367507,1713933050159,-1406.85,0.00016438,2]
[323367508,1713933050170,-762.1,0.00016438,2]
[323367509,1713933050180,-394.57288357,0.00016438,2]
[323367510,1713933050189,-875.75,0.00016438,2]
[323367511,1713933050199,-601.58,0.00016438,2]
[323367512,1713933050209,-500.0,0.00016438,2]
[323367513,1713933050219,-1053.34,0.00016438,2]
[323367514,1713933050229,-500.0,0.00016438,2]
[323367515,1713933050238,-500.0,0.00016438,2]
[323367516,1713933050247,-500.0,0.00016438,2]
[323367517,1713933050256,-500.0,0.00016438,2]
[323367518,1713933050266,-500.0,0.00016438,2]
[323367519,1713933050277,-500.0,0.00016438,2]
[323367520,1713933050286,-1593.35,0.00016438,2]
[323367521,1713933050296,-1113.19,0.00016438,2]
[323367522,1713933050306,-500.0,0.00016438,2]
[323367523,1713933050315,-500.0,0.00016438,2]
[323367524,1713933050465,-500.0,0.00016438,2]
[323367525,1713933050475,-722.07,0.00016438,2]
[323367526,1713933050484,-448.94659712,0.00016438,2]
[323367537,1713933938112,-1575.31939472,0.00014727,2]
[323367538,1713933938133,-300.0,0.00014728,2]
[323367539,1713933938152,-2099.79903615,0.00015,2]
[323367540,1713933938171,-1535.9426537,0.00015,2]
[323367588,1713934232015,-2776.29930889,0.00015874,2]
[323367589,1713934232025,-1676.10589151,0.00015875,2]
[323367590,1713934232034,-312.66661178,0.00015875,2]
[323367592,1713934232043,-2099.79903615,0.00015876,2]
[323367594,1713934232052,-938.69803003,0.00015877,2]
[323367595,1713934232062,-620.17895264,0.00015904,2]
[323367596,1713934232071,-628.29006624,0.00016319,2]
[323367598,1713934232080,-300.0,0.00016333,2]
[323367599,1713934232089,-300.0,0.00016333,2]
[323367601,1713934232099,-1164.8465882,0.00016334,2]
[323367603,1713934232109,-157.06659545,0.00016335,2]
[323367605,1713934232118,-5000.0,0.00016335,2]
[323367606,1713934232128,-260.01824474,0.00016335,2]
[323367607,1713934232137,-161.50555538,0.00016335,2]
[323367608,1713934232146,-154.8768351,0.00016335,2]
[323367609,1713934232155,-1529.96470964,0.00016335,2]
[323367610,1713934232165,-4413.25225989,0.00016335,2]
[323367611,1713934232174,-44444.0,0.00016337,2]
[323367612,1713934232183,-5821.00592208,0.00016338,2]
[323367613,1713934232197,-306.0,0.000164,2]
[323367614,1713934232206,-173.62921159,0.00016437,2]
[323367615,1713934232216,-30827.9202824,0.00016437,2]
[323367645,1713934238220,-167332.53655539,0.00016437,2]
[323367730,1713934243281,-373.96449856,0.00016437,2]
[323367731,1713934243292,-378.94199999,0.00016437,2]
[323367733,1713934243340,-14796.5016068,0.00016437,2]
[323367753,1713934831490,19141.44091354,0.00015,6]
[323367758,1713935142170,-300.0,0.00014728,2]
[323367759,1713935142190,-154.08119064,0.00014895,2]
[323367760,1713935142213,-943.9909599,0.00014989,2]
[323367761,1713935142232,-265.219801,0.00014995,2]
[323367762,1713935142251,-938.69803003,0.00015,2]
[323367763,1713935142271,-312.66661178,0.00015397,2]
[323367764,1713935142290,-300.0,0.00015399,2]
[323367765,1713935142310,-15912.0,0.000154,2]
[323367766,1713935142329,-9540.6519563,0.00016088,2]
[323367767,1713935142348,-420.0,0.00016123,2]
[323367768,1713935142368,-1210.30298642,0.00016336,2]
[323367769,1713935142388,-301.07832754,0.00016336,2]
[323367770,1713935142410,-160.59976227,0.00016336,2]
[323367771,1713935142430,-184.84247159,0.00016336,2]
[323367772,1713935142450,-154.93451573,0.00016336,2]
[323367773,1713935142475,-154.92930371,0.00016336,2]
[323367774,1713935142494,-199.60946054,0.00016336,2]
[323367775,1713935142514,-1000.0,0.00016336,2]
[323367776,1713935142534,-391.94809942,0.00016337,2]
[323367777,1713935142555,-44444.0,0.00016338,2]
[323367778,1713935142575,-153.0,0.000164,2]
[323367779,1713935142595,-153.0,0.000164,2]
[323367780,1713935142615,-153.0,0.00016427,2]
[323367781,1713935142635,-153.0,0.00016427,2]
[323367782,1713935142655,-154.1550068,0.00016427,2]
[323367783,1713935142676,-382.56537158,0.00016435,2]
[323367784,1713935142698,-387.42188923,0.00016436,2]
[323367785,1713935142719,-1077.08933516,0.00016436,2]
[323367786,1713935142739,-876.68973649,0.00016436,2]
[323367787,1713935142759,-59671.15348313,0.00016437,2]
[323367788,1713935153121,-153.0,0.00016427,2]
[323367789,1713935153145,-54566.63657512,0.00016437,2]
[323367796,1713935240084,-312.66661178,0.00016433,2]
[323367797,1713935240271,-938.69803003,0.00016434,2]
[323367798,1713935240296,-300.0,0.00016434,2]
[323367799,1713935240316,-300.0,0.00016434,2]
[323367800,1713935240337,-180.29939571,0.00016435,2]
[323367801,1713935240357,-1210.30298642,0.00016435,2]
[323367802,1713935240376,-184.84247159,0.00016435,2]
[323367803,1713935240397,-154.92930371,0.00016435,2]
[323367804,1713935240417,-391.94809942,0.00016435,2]
[323367805,1713935240436,-301.07832754,0.00016435,2]
[323367806,1713935240456,-160.59976227,0.00016435,2]
[323367807,1713935240475,-199.60946054,0.00016435,2]
[323367808,1713935240494,-154.93451573,0.00016435,2]
[323367809,1713935240514,-1000.0,0.00016435,2]
[323367810,1713935240536,-82090.98804481,0.00016437,2]
[323367811,1713935240556,-221.89226198,0.00016437,2]
[323367812,1713935240575,-155.46146298,0.00016438,2]
[323367813,1713935240595,-500.51741182,0.00016438,2]
[323367814,1713935240617,-1072.29,0.00016438,2]
[323367815,1713935240637,-500.0,0.00016438,2]
[323367816,1713935240656,-500.33849054,0.00016438,2]
[323367817,1713935240676,-500.0,0.00016438,2]
[323367818,1713935240696,-500.0,0.00016438,2]
[323367819,1713935240715,-500.0,0.00016438,2]
[323367820,1713935240735,-500.0,0.00016438,2]
[323367821,1713935240755,-500.0,0.00016438,2]
[323367822,1713935240777,-528.40626369,0.00016438,2]
[323367823,1713935240797,-500.88350996,0.00016438,2]
[323367824,1713935240817,-553.98,0.00016438,2]
[323367825,1713935240836,-430.25915948,0.00016438,2]
[323367826,1713935243099,-69.74084052,0.00016438,2]
[323367827,1713935243119,-740.36,0.00016438,2]
[323367828,1713935243138,-818.64,0.00016438,2]
[323367829,1713935243159,-500.0,0.00016438,2]
[323367830,1713935243178,-2118.71,0.00016438,2]
[323367831,1713935243197,-500.0,0.00016438,2]
[323367832,1713935243217,-500.0,0.00016438,2]
[323367833,1713935243235,-500.23811405,0.00016438,2]
[323367834,1713935243254,-694.42,0.00016438,2]
[323367835,1713935243272,-500.0,0.00016438,2]
[323367836,1713935243293,-544.68739351,0.00016438,2]
[323367837,1713935243314,-151.36560727,0.00016438,2]
[323367838,1713935243335,-500.0,0.00016438,2]
[323367839,1713935243356,-389.04537626,0.00016438,2]
[323367840,1713935243376,-503.30258881,0.00016438,2]
[323367841,1713935243396,-500.0,0.00016438,2]
[323367842,1713935243416,-500.0,0.00016438,2]
[323367843,1713935243436,-500.0,0.00016438,2]
[323367844,1713935243455,-500.0,0.00016438,2]
[323367845,1713935243475,-500.0,0.00016438,2]
[323367846,1713935243496,-500.0,0.00016438,2]
[323367847,1713935243515,-500.0,0.00016438,2]
[323367848,1713935243535,-501.36285965,0.00016438,2]
[323367849,1713935243556,-500.0,0.00016438,2]
[323367850,1713935243575,-1039.44,0.00016438,2]
[323367851,1713935243593,-500.0,0.00016438,2]
[323367852,1713935243612,-500.0,0.00016438,2]
[323367853,1713935243631,-432.75212267,0.00016438,2]
[323367854,1713935243651,-500.0,0.00016438,2]
[323367855,1713935243673,-500.0,0.00016438,2]
[323367856,1713935243694,-500.0,0.00016438,2]
[323367857,1713935243718,-570.95964581,0.00016438,2]
[323367858,1713935243739,-500.0,0.00016438,2]
[323367859,1713935243762,-184.16387975,0.00016438,2]
[323367860,1713935243782,-500.0,0.00016438,2]
[323367861,1713935243801,-439.44795707,0.00016438,2]
[323367862,1713935243820,-500.84507688,0.00016438,2]
[323367863,1713935243839,-500.0,0.00016438,2]
[323367864,1713935243860,-500.0,0.00016438,2]
[323367865,1713935243880,-313.11472914,0.00016438,2]
[323367866,1713935243900,-706.26,0.00016438,2]
[323367867,1713935243919,-500.0,0.00016438,2]
[323367868,1713935243939,-421.82999351,0.00016438,2]
[323367869,1713935243959,-500.0,0.00016438,2]
[323367870,1713935243977,-500.76994884,0.00016438,2]
[323367871,1713935243997,-181.10246799,0.00016438,2]
[323367872,1713935244016,-500.0,0.00016438,2]
[323367873,1713935244037,-500.0,0.00016438,2]
[323367874,1713935244057,-500.59986434,0.00016438,2]
[323367875,1713935244077,-500.0,0.00016438,2]
[323367876,1713935244097,-500.0,0.00016438,2]
[323367877,1713935244118,-500.0,0.00016438,2]
[323367878,1713935244139,-506.66663132,0.00016438,2]
[323367879,1713935244161,-503.09299643,0.00016438,2]
[323367880,1713935244181,-500.0,0.00016438,2]
[323367881,1713935244202,-500.0,0.00016438,2]
[323367882,1713935244222,-500.0,0.00016438,2]
[323367883,1713935244242,-500.0,0.00016438,2]
[323367884,1713935244263,-690.3,0.00016438,2]
[323367885,1713935244283,-500.467158,0.00016438,2]
[323367886,1713935244303,-500.0,0.00016438,2]
[323367887,1713935244322,-541.15010446,0.00016438,2]
[323367888,1713935244343,-500.0,0.00016438,2]
[323367889,1713935244361,-502.18354424,0.00016438,2]
[323367890,1713935244382,-500.0,0.00016438,2]
[323367891,1713935244403,-487.27586317,0.00016438,2]
[323367892,1713935244423,-500.0,0.00016438,2]
[323367893,1713935244443,-500.0,0.00016438,2]
[323367894,1713935244463,-500.0,0.00016438,2]
[323367895,1713935244484,-555.36,0.00016438,2]
[323367896,1713935244503,-923.86,0.00016438,2]
[323367897,1713935244523,-500.0,0.00016438,2]
[323367898,1713935244693,-1694.19,0.00016438,2]
[323367899,1713935244716,-500.0,0.00016438,2]
[323367900,1713935244737,-500.0,0.00016438,2]
[323367901,1713935244759,-1248.72,0.00016438,2]
[323367902,1713935244779,-500.0,0.00016438,2]
[323367903,1713935244801,-1841.73,0.00016438,2]
[323367904,1713935244820,-621.02,0.00016438,2]
[323367905,1713935244841,-500.0,0.00016438,2]
[323367906,1713935244861,-500.0,0.00016438,2]
[323367907,1713935244881,-500.0,0.00016438,2]
[323367908,1713935244899,-267.46,0.00016438,2]
[323367909,1713935244919,-442.11905763,0.00016438,2]
[323367910,1713935244937,-589.94,0.00016438,2]
[323367911,1713935244956,-500.0,0.00016438,2]
[323367912,1713935244976,-500.0,0.00016438,2]
[323367913,1713935244996,-500.0,0.00016438,2]
[323367914,1713935245016,-501.06505482,0.00016438,2]
[323367915,1713935245036,-500.0,0.00016438,2]
[323367916,1713935245055,-242.37419456,0.00016438,2]
[323367917,1713935245074,-500.92107633,0.00016438,2]
[323367918,1713935245093,-758.5,0.00016438,2]
[323367919,1713935245113,-500.0,0.00016438,2]
[323367920,1713935245132,-204.36487611,0.00016438,2]
[323367921,1713935245155,-1498.56,0.00016438,2]
[323367922,1713935245175,-500.0,0.00016438,2]
[323367923,1713935245199,-500.0,0.00016438,2]
[323367924,1713935245219,-156.23593361,0.00016438,2]
[323367925,1713935245239,-500.0,0.00016438,2]
[323367926,1713935245260,-500.0,0.00016438,2]
[323367927,1713935245280,-500.0,0.00016438,2]
[323367928,1713935245302,-1949.83,0.00016438,2]
[323367929,1713935245322,-500.0,0.00016438,2]
[323367930,1713935245342,-228.10138109,0.00016438,2]
[323367931,1713935245361,-500.0,0.00016438,2]
[323367932,1713935245380,-500.0,0.00016438,2]
[323367933,1713935245399,-997.16,0.00016438,2]
[323367934,1713935245419,-647.3776122,0.00016438,2]
[323367935,1713935245438,-596.73,0.00016438,2]
[323367936,1713935245458,-500.0,0.00016438,2]
[323367937,1713935245477,-200.26874706,0.00016438,2]
[323367938,1713935245496,-500.0,0.00016438,2]
[323367939,1713935245515,-500.0,0.00016438,2]
[323367940,1713935245537,-500.0,0.00016438,2]
[323367941,1713935245557,-1289.53,0.00016438,2]
[323367942,1713935245577,-500.0,0.00016438,2]
[323367943,1713935245597,-500.98348651,0.00016438,2]
[323367944,1713935245616,-500.79999965,0.00016438,2]
[323367945,1713935245635,-500.0,0.00016438,2]
[323367946,1713935245655,-500.0,0.00016438,2]
[323367947,1713935245676,-730.34,0.00016438,2]
[323367948,1713935245695,-973.07,0.00016438,2]
[323367949,1713935245715,-484.08119159,0.00016438,2]
[323367950,1713935245735,-500.0,0.00016438,2]
[323367951,1713935245754,-507.82645358,0.00016438,2]
[323367952,1713935245772,-500.0,0.00016438,2]
[323367953,1713935245793,-500.0,0.00016438,2]
[323367954,1713935245812,-500.0,0.00016438,2]
[323367955,1713935245831,-522.63,0.00016438,2]
[323367956,1713935245850,-500.0,0.00016438,2]
[323367957,1713935245870,-500.55821023,0.00016438,2]
[323367958,1713935245889,-500.0,0.00016438,2]
[323367959,1713935245909,-500.0,0.00016438,2]
[323367960,1713935245928,-500.0,0.00016438,2]
[323367961,1713935245947,-500.0,0.00016438,2]
[323367962,1713935245966,-839.26,0.00016438,2]
[323367963,1713935245986,-500.0,0.00016438,2]
[323367964,1713935246005,-1348.23,0.00016438,2]
[323367965,1713935246024,-500.0,0.00016438,2]
[323367966,1713935246045,-500.0,0.00016438,2]
[323367967,1713935246064,-500.0,0.00016438,2]
[323367968,1713935246083,-480.80965386,0.00016438,2]
[323367969,1713935246103,-691.98,0.00016438,2]
[323367970,1713935246123,-500.0,0.00016438,2]
[323367971,1713935246142,-500.0,0.00016438,2]
[323367972,1713935246164,-1066.81,0.00016438,2]
[323367973,1713935246183,-500.0,0.00016438,2]
[323367974,1713935246203,-500.0,0.00016438,2]
[323367975,1713935246224,-500.0,0.00016438,2]
[323367976,1713935246244,-501.48617596,0.00016438,2]
[323367977,1713935246264,-500.0,0.00016438,2]
[323367978,1713935246285,-500.0,0.00016438,2]
[323367979,1713935246305,-3172.22,0.00016438,2]